[Event "*** Titled Tuesday Blitz"]
[Site "Chess.com"]
[Date "2020.12.29"]
[Round "10"]
[White "vladgoncharov"]
[Black "ambaixador"]
[Result "1/2-1/2"]
[WhiteElo "2553"]
[BlackElo "2437"]
[TimeControl "180+1"]
[EndTime "11:56:52 PST"]
[Termination "Game drawn - insufficient material"]

1. e4 {[%clk 0:02:58.2]} 1... c5 {[%clk 0:02:59.8]} 2. Nf3 {[%clk 0:02:50.7]}
2... d6 {[%clk 0:02:59.8]} 3. d4 {[%clk 0:02:50.9]} 3... cxd4 {[%clk 0:03:00.7]}
4. Qxd4 {[%clk 0:02:51.1]} 4... Nf6 {[%clk 0:02:58.5]} 5. Nc3 {[%clk 0:02:50.3]}
5... Nc6 {[%clk 0:02:57.4]} 6. Bb5 {[%clk 0:02:50.1]} 6... Bd7 {[%clk
0:02:56.5]} 7. Bxc6 {[%clk 0:02:50.1]} 7... Bxc6 {[%clk 0:02:49.4]} 8. Bg5
{[%clk 0:02:46.3]} 8... e6 {[%clk 0:02:13.5]} 9. O-O-O {[%clk 0:02:45.2]} 9...
Be7 {[%clk 0:02:13.3]} 10. Rhe1 {[%clk 0:02:44.3]} 10... O-O {[%clk 0:02:04.8]}
11. Kb1 {[%clk 0:02:39.3]} 11... Qc7 {[%clk 0:01:58.6]} 12. Qd2 {[%clk
0:02:37.5]} 12... b5 {[%clk 0:01:52.3]} 13. Nd4 {[%clk 0:02:37.4]} 13... b4
{[%clk 0:01:47.2]} 14. Nxc6 {[%clk 0:02:20]} 14... Qxc6 {[%clk 0:01:46.7]} 15.
Bxf6 {[%clk 0:02:08.7]} 15... Bxf6 {[%clk 0:01:46.2]} 16. Ne2 {[%clk 0:02:07.8]}
16... Qxe4 {[%clk 0:01:44.2]} 17. Nc1 {[%clk 0:01:53.2]} 17... Qxg2 {[%clk
0:01:41.6]} 18. Qxd6 {[%clk 0:01:52]} 18... Qxf2 {[%clk 0:01:37.1]} 19. Nd3
{[%clk 0:01:50.8]} 19... Qd4 {[%clk 0:01:26.5]} 20. Qxd4 {[%clk 0:01:48.8]}
20... Bxd4 {[%clk 0:01:27.4]} 21. Nxb4 {[%clk 0:01:48.9]} 21... Bf6 {[%clk
0:01:26.6]} 22. c4 {[%clk 0:01:30]} 22... Rab8 {[%clk 0:01:20.4]} 23. Nd3 {[%clk
0:01:29.5]} 23... Rfc8 {[%clk 0:01:19.9]} 24. Rc1 {[%clk 0:01:26.9]} 24... a5
{[%clk 0:01:19.4]} 25. c5 {[%clk 0:01:22.3]} 25... a4 {[%clk 0:01:18.7]} 26. Re2
{[%clk 0:01:16.5]} 26... Rd8 {[%clk 0:00:53.9]} 27. Ne5 {[%clk 0:01:15.9]} 27...
Rd5 {[%clk 0:00:48.7]} 28. Ng4 {[%clk 0:01:11.1]} 28... Be7 {[%clk 0:00:39.5]}
29. c6 {[%clk 0:01:08.7]} 29... a3 {[%clk 0:00:35]} 30. b3 {[%clk 0:00:55.2]}
30... Rc8 {[%clk 0:00:34.7]} 31. Rc4 {[%clk 0:00:49.5]} 31... Rd1+ {[%clk
0:00:26.9]} 32. Kc2 {[%clk 0:00:46.1]} 32... Rd6 {[%clk 0:00:27.2]} 33. Ne5
{[%clk 0:00:31.9]} 33... f6 {[%clk 0:00:27]} 34. Nd3 {[%clk 0:00:31.8]} 34...
Rdxc6 {[%clk 0:00:26.7]} 35. Rxe6 {[%clk 0:00:32.1]} 35... Rxc4+ {[%clk
0:00:25.4]} 36. bxc4 {[%clk 0:00:33]} 36... Rxc4+ {[%clk 0:00:26.1]} 37. Kb3
{[%clk 0:00:33.4]} 37... Rc7 {[%clk 0:00:21.5]} 38. Nf4 {[%clk 0:00:33]} 38...
Kf7 {[%clk 0:00:20.3]} 39. Ra6 {[%clk 0:00:32.8]} 39... Rb7+ {[%clk 0:00:17.9]}
40. Kc3 {[%clk 0:00:30]} 40... Rd7 {[%clk 0:00:17.7]} 41. Kc4 {[%clk 0:00:28.9]}
41... Bd6 {[%clk 0:00:17.5]} 42. Nd5 {[%clk 0:00:27.4]} 42... Bxh2 {[%clk
0:00:17.2]} 43. Rxa3 {[%clk 0:00:27]} 43... Be5 {[%clk 0:00:17.1]} 44. Ra8
{[%clk 0:00:20.4]} 44... h5 {[%clk 0:00:16]} 45. a4 {[%clk 0:00:20.5]} 45... h4
{[%clk 0:00:15.9]} 46. a5 {[%clk 0:00:20.8]} 46... h3 {[%clk 0:00:15.1]} 47. a6
{[%clk 0:00:18.5]} 47... h2 {[%clk 0:00:15.2]} 48. Rh8 {[%clk 0:00:18.2]} 48...
Ra7 {[%clk 0:00:13.3]} 49. Kb5 {[%clk 0:00:18]} 49... Ke6 {[%clk 0:00:13.3]} 50.
Ne3 {[%clk 0:00:17.8]} 50... g5 {[%clk 0:00:12.9]} 51. Nf1 {[%clk 0:00:17.2]}
51... g4 {[%clk 0:00:10.5]} 52. Nxh2 {[%clk 0:00:17.1]} 52... g3 {[%clk
0:00:10.9]} 53. Nf3 {[%clk 0:00:15.9]} 53... Kf5 {[%clk 0:00:10.9]} 54. Rg8
{[%clk 0:00:13.7]} 54... Bf4 {[%clk 0:00:08.5]} 55. Nd4+ {[%clk 0:00:12.5]}
55... Ke4 {[%clk 0:00:08.2]} 56. Nc6 {[%clk 0:00:12.6]} 56... Rc7 {[%clk
0:00:07.4]} 57. a7 {[%clk 0:00:11.1]} 57... Rxa7 {[%clk 0:00:07.6]} 58. Nxa7
{[%clk 0:00:12]} 58... Bg5 {[%clk 0:00:07.5]} 59. Rd8 {[%clk 0:00:06.2]} 59...
g2 {[%clk 0:00:06.8]} 60. Rd1 {[%clk 0:00:06.6]} 60... Be3 {[%clk 0:00:05]} 61.
Nc6 {[%clk 0:00:06.5]} 61... g1=Q {[%clk 0:00:04.1]} 62. Rxg1 {[%clk 0:00:06.5]}
62... Bxg1 {[%clk 0:00:05]} 63. Ne7 {[%clk 0:00:06.2]} 63... Ke5 {[%clk
0:00:03.1]} 64. Kc4 {[%clk 0:00:06.3]} 64... Ke6 {[%clk 0:00:02]} 65. Ng6 {[%clk
0:00:06.4]} 65... f5 {[%clk 0:00:01.9]} 66. Kd3 {[%clk 0:00:05.7]} 66... Kf6
{[%clk 0:00:02.1]} 67. Nf4 {[%clk 0:00:05.5]} 67... Bh2 {[%clk 0:00:02.2]} 68.
Nd5+ {[%clk 0:00:05.5]} 68... Ke5 {[%clk 0:00:02.3]} 69. Ne3 {[%clk 0:00:06]}
69... f4 {[%clk 0:00:03.2]} 70. Ng4+ {[%clk 0:00:06.2]} 70... Kf5 {[%clk
0:00:04.1]} 71. Nxh2 {[%clk 0:00:07.1]} 71... Kg5 {[%clk 0:00:04.4]} 72. Nf1
{[%clk 0:00:07.8]} 72... f3 {[%clk 0:00:05.3]} 73. Ke3 {[%clk 0:00:07.4]} 73...
Kh4 {[%clk 0:00:06.2]} 74. Kf2 {[%clk 0:00:08.3]} 74... Kh5 {[%clk 0:00:07]} 75.
Nd2 {[%clk 0:00:09.2]} 75... Kg6 {[%clk 0:00:07.9]} 76. Nxf3 {[%clk 0:00:10.1]}
1/2-1/2

[Event "*** Titled Tuesday Blitz"]
[Site "Chess.com"]
[Date "2020.12.29"]
[Round "10"]
[White "louis198"]
[Black "Arseniy_Nesterov"]
[Result "0-1"]
[WhiteElo "2616"]
[BlackElo "2794"]
[TimeControl "180+1"]
[EndTime "11:56:53 PST"]
[Termination "Arseniy_Nesterov won on time"]

1. d4 {[%clk 0:03:00.9]} 1... d5 {[%clk 0:02:58.5]} 2. c4 {[%clk 0:03:00.8]}
2... c6 {[%clk 0:02:58.9]} 3. Nc3 {[%clk 0:03:00.9]} 3... Nf6 {[%clk 0:02:59.1]}
4. Nf3 {[%clk 0:03:00.5]} 4... dxc4 {[%clk 0:02:59.4]} 5. e3 {[%clk 0:03:00.2]}
5... b5 {[%clk 0:02:58.9]} 6. a4 {[%clk 0:03:00.3]} 6... b4 {[%clk 0:02:59.2]}
7. Na2 {[%clk 0:02:59.9]} 7... e6 {[%clk 0:02:58.4]} 8. Bxc4 {[%clk 0:03:00]}
8... a5 {[%clk 0:02:58.5]} 9. O-O {[%clk 0:03:00.4]} 9... Ba6 {[%clk 0:02:56.7]}
10. Qe2 {[%clk 0:03:00.1]} 10... Be7 {[%clk 0:02:56.4]} 11. Bd2 {[%clk
0:02:59.6]} 11... O-O {[%clk 0:02:56.1]} 12. Nc1 {[%clk 0:02:59.3]} 12... Ne4
{[%clk 0:02:42]} 13. Nb3 {[%clk 0:02:56]} 13... c5 {[%clk 0:02:23.3]} 14. Rfd1
{[%clk 0:02:50.9]} 14... cxd4 {[%clk 0:02:10.8]} 15. Nbxd4 {[%clk 0:02:37.6]}
15... Qb6 {[%clk 0:01:48.4]} 16. Be1 {[%clk 0:02:28.9]} 16... Bb7 {[%clk
0:01:38.4]} 17. Rac1 {[%clk 0:02:26.5]} 17... Nc6 {[%clk 0:01:31.5]} 18. Bb5
{[%clk 0:01:46.1]} 18... Nxd4 {[%clk 0:01:30.6]} 19. Nxd4 {[%clk 0:01:32.8]}
19... Rac8 {[%clk 0:01:28.6]} 20. f3 {[%clk 0:01:27.8]} 20... Nd6 {[%clk
0:01:22.2]} 21. Bf2 {[%clk 0:01:25.4]} 21... e5 {[%clk 0:01:14.6]} 22. Nb3
{[%clk 0:01:18.4]} 22... e4 {[%clk 0:00:58.7]} 23. Rxc8 {[%clk 0:00:58.6]} 23...
Rxc8 {[%clk 0:00:56.1]} 24. f4 {[%clk 0:00:58.9]} 24... h6 {[%clk 0:00:49.3]}
25. g4 {[%clk 0:00:44.2]} 25... Rd8 {[%clk 0:00:26.5]} 26. Nd4 {[%clk
0:00:40.9]} 26... Bf6 {[%clk 0:00:25]} 27. b3 {[%clk 0:00:31.3]} 27... Nxb5
{[%clk 0:00:22.3]} 28. Nxb5 {[%clk 0:00:28.2]} 28... Ba6 {[%clk 0:00:12.4]} 29.
Rxd8+ {[%clk 0:00:20.2]} 29... Qxd8 {[%clk 0:00:11.8]} 30. Kg2 {[%clk
0:00:18.5]} 30... Qd5 {[%clk 0:00:09.1]} 31. h4 {[%clk 0:00:06.8]} 31... Qxb3
{[%clk 0:00:08.5]} 32. g5 {[%clk 0:00:06.2]} 32... hxg5 {[%clk 0:00:08.5]} 33.
hxg5 {[%clk 0:00:07.1]} 33... Be7 {[%clk 0:00:08.8]} 34. Qg4 {[%clk 0:00:05.9]}
34... Qxa4 {[%clk 0:00:06.6]} 35. Nd4 {[%clk 0:00:06]} 35... Qe8 {[%clk
0:00:05.4]} 36. g6 {[%clk 0:00:04.7]} 36... Bc4 {[%clk 0:00:02.3]} 37. gxf7+
{[%clk 0:00:05.6]} 37... Bxf7 {[%clk 0:00:02.8]} 38. Nf5 {[%clk 0:00:04.9]}
38... Bf6 {[%clk 0:00:03.3]} 39. Nd6 {[%clk 0:00:05.2]} 39... Qe6 {[%clk
0:00:03]} 40. Nf5 {[%clk 0:00:05.5]} 40... Qe8 {[%clk 0:00:02.1]} 41. Nh6+
{[%clk 0:00:04.9]} 41... Kf8 {[%clk 0:00:01.6]} 42. Nxf7 {[%clk 0:00:04.2]}
42... Kxf7 {[%clk 0:00:02.5]} 43. Qh5+ {[%clk 0:00:04.1]} 43... Kf8 {[%clk
0:00:03.4]} 44. Qxa5 {[%clk 0:00:04.7]} 44... Kf7 {[%clk 0:00:04.3]} 45. Qxb4
{[%clk 0:00:05.1]} 45... Qe7 {[%clk 0:00:04.9]} 46. Qc4+ {[%clk 0:00:05.5]}
46... Qe6 {[%clk 0:00:05.4]} 47. Qc7+ {[%clk 0:00:05.2]} 47... Kg6 {[%clk
0:00:05.4]} 48. Qc5 {[%clk 0:00:03.1]} 48... Qg4+ {[%clk 0:00:05.4]} 49. Kf1
{[%clk 0:00:04]} 49... Qh3+ {[%clk 0:00:05.7]} 50. Ke2 {[%clk 0:00:04.2]} 50...
Qg4+ {[%clk 0:00:05.9]} 51. Ke1 {[%clk 0:00:05.1]} 51... Kh7 {[%clk 0:00:05.4]}
52. Qd5 {[%clk 0:00:05.3]} 52... Qg6 {[%clk 0:00:05]} 53. Ke2 {[%clk 0:00:04.3]}
53... Qg4+ {[%clk 0:00:04.9]} 54. Ke1 {[%clk 0:00:04.1]} 54... Qf3 {[%clk
0:00:05.3]} 55. Qe6 {[%clk 0:00:04.2]} 55... Qh1+ {[%clk 0:00:04.9]} 56. Ke2
{[%clk 0:00:03.4]} 56... Qf3+ {[%clk 0:00:05.2]} 57. Ke1 {[%clk 0:00:03.9]}
57... Bc3+ {[%clk 0:00:05.4]} 58. Kf1 {[%clk 0:00:03.7]} 58... Qh1+ {[%clk
0:00:05.9]} 59. Ke2 {[%clk 0:00:03]} 59... Qh5+ {[%clk 0:00:05.6]} 60. Kf1
{[%clk 0:00:02.4]} 60... Qd1+ {[%clk 0:00:06]} 61. Kg2 {[%clk 0:00:02.7]} 61...
Qf3+ {[%clk 0:00:06.6]} 62. Kf1 {[%clk 0:00:03.2]} 62... Bf6 {[%clk 0:00:07.1]}
63. Qf5+ {[%clk 0:00:02.5]} 63... Kh8 {[%clk 0:00:07]} 64. Qc8+ {[%clk 0:00:03]}
64... Kh7 {[%clk 0:00:07.4]} 65. Qf5+ {[%clk 0:00:03.9]} 65... Kh6 {[%clk
0:00:07.9]} 66. Qe6 {[%clk 0:00:03.7]} 66... Kg6 {[%clk 0:00:06.9]} 67. Qe8+
{[%clk 0:00:02.8]} 67... Kh7 {[%clk 0:00:06.7]} 68. Qe6 {[%clk 0:00:03]} 68...
Bh4 {[%clk 0:00:05.6]} 69. Qf5+ {[%clk 0:00:03.5]} 69... Kh6 {[%clk 0:00:06.1]}
70. Qe6+ {[%clk 0:00:03.4]} 70... g6 {[%clk 0:00:06.7]} 71. Qxg6+ {[%clk
0:00:01.4]} 71... Kxg6 {[%clk 0:00:06.6]} 72. f5+ {[%clk 0:00:02.3]} 72... Kxf5
{[%clk 0:00:06.6]} 0-1

[Event "*** Titled Tuesday Blitz"]
[Site "Chess.com"]
[Date "2020.12.29"]
[Round "10"]
[White "ClydeHillKid"]
[Black "cukin84"]
[Result "1-0"]
[WhiteElo "2390"]
[BlackElo "2199"]
[TimeControl "180+1"]
[EndTime "11:56:59 PST"]
[Termination "ClydeHillKid won on time"]

1. e4 {[%clk 0:03:00.9]} 1... c6 {[%clk 0:02:59.7]} 2. d3 {[%clk 0:02:59.9]}
2... d5 {[%clk 0:02:59.8]} 3. Nd2 {[%clk 0:02:59.7]} 3... e5 {[%clk 0:02:57.8]}
4. Ngf3 {[%clk 0:02:58.8]} 4... Bd6 {[%clk 0:02:57.1]} 5. g3 {[%clk 0:02:58.6]}
5... Nf6 {[%clk 0:02:55.7]} 6. Bg2 {[%clk 0:02:56.4]} 6... O-O {[%clk
0:02:55.5]} 7. O-O {[%clk 0:02:54.9]} 7... Nbd7 {[%clk 0:02:50.9]} 8. Re1 {[%clk
0:02:55]} 8... d4 {[%clk 0:02:49.9]} 9. c3 {[%clk 0:02:54.3]} 9... c5 {[%clk
0:02:49.1]} 10. Nc4 {[%clk 0:02:54.2]} 10... Bb8 {[%clk 0:02:48.5]} 11. b4
{[%clk 0:02:46.3]} 11... b5 {[%clk 0:02:47.7]} 12. Na3 {[%clk 0:02:31.6]} 12...
dxc3 {[%clk 0:02:46.4]} 13. bxc5 {[%clk 0:02:28.9]} 13... b4 {[%clk 0:02:45.5]}
14. Nc4 {[%clk 0:02:29.1]} 14... Ba6 {[%clk 0:02:35.6]} 15. c6 {[%clk
0:02:24.1]} 15... Bxc4 {[%clk 0:02:32.6]} 16. dxc4 {[%clk 0:02:07.2]} 16... Nb6
{[%clk 0:02:27.4]} 17. Qb3 {[%clk 0:01:59.6]} 17... a5 {[%clk 0:02:23.3]} 18. a3
{[%clk 0:01:58.4]} 18... Bd6 {[%clk 0:02:16.7]} 19. axb4 {[%clk 0:01:55.8]}
19... axb4 {[%clk 0:02:16.3]} 20. Rxa8 {[%clk 0:01:55]} 20... Qxa8 {[%clk
0:02:15.7]} 21. Be3 {[%clk 0:01:45.3]} 21... Qxc6 {[%clk 0:02:14.3]} 22. Nd2
{[%clk 0:01:45.5]} 22... Ra8 {[%clk 0:02:01.9]} 23. Nb1 {[%clk 0:01:38.4]} 23...
Nxc4 {[%clk 0:01:55.7]} 24. Bg5 {[%clk 0:01:35.3]} 24... Nd7 {[%clk 0:01:47.8]}
25. Bf1 {[%clk 0:01:20.2]} 25... Ndb6 {[%clk 0:01:44.4]} 26. Rd1 {[%clk
0:01:09.5]} 26... h6 {[%clk 0:01:39.8]} 27. Bc1 {[%clk 0:01:05.1]} 27... Bc5
{[%clk 0:01:31]} 28. Nxc3 {[%clk 0:00:52.4]} 28... bxc3 {[%clk 0:01:30]} 29.
Qxc3 {[%clk 0:00:53.3]} 29... Bd4 {[%clk 0:01:25.7]} 30. Qb3 {[%clk 0:00:49.3]}
30... Kh7 {[%clk 0:01:22.6]} 31. Be2 {[%clk 0:00:21.7]} 31... Qc5 {[%clk
0:01:14.4]} 32. Rf1 {[%clk 0:00:20.1]} 32... Nd6 {[%clk 0:01:00.2]} 33. Qf3
{[%clk 0:00:17.5]} 33... Ra7 {[%clk 0:00:56.3]} 34. Bd2 {[%clk 0:00:13.9]} 34...
Nbc4 {[%clk 0:00:55]} 35. Bc1 {[%clk 0:00:13.2]} 35... Qc7 {[%clk 0:00:49.1]}
36. h4 {[%clk 0:00:12.9]} 36... Qe7 {[%clk 0:00:45.5]} 37. h5 {[%clk 0:00:10.9]}
37... Qf6 {[%clk 0:00:45.3]} 38. Qg4 {[%clk 0:00:07.7]} 38... Ra2 {[%clk
0:00:39.2]} 39. Kg2 {[%clk 0:00:06.9]} 39... Bb2 {[%clk 0:00:31.9]} 40. Be3
{[%clk 0:00:04.7]} 40... Nxe3+ {[%clk 0:00:31.3]} 41. fxe3 {[%clk 0:00:05.6]}
41... Qg5 {[%clk 0:00:22.4]} 42. Qf3 {[%clk 0:00:04.1]} 42... Nc4 {[%clk
0:00:20.3]} 43. Kh3 {[%clk 0:00:03.7]} 43... Nxe3 {[%clk 0:00:18.3]} 44. Rf2
{[%clk 0:00:03.1]} 44... Bd4 {[%clk 0:00:17.5]} 45. Qxf7 {[%clk 0:00:02.1]}
45... Ng4 {[%clk 0:00:14]} 46. Bxg4 {[%clk 0:00:01.4]} 46... Rxf2 {[%clk
0:00:12.7]} 47. Bf5+ {[%clk 0:00:01.8]} 47... Rxf5 {[%clk 0:00:11.9]} 48. exf5
{[%clk 0:00:02.7]} 48... Bf2 {[%clk 0:00:08.4]} 49. Qg6+ {[%clk 0:00:02.2]}
49... Qxg6 {[%clk 0:00:08.8]} 50. hxg6+ {[%clk 0:00:02.8]} 50... Kg8 {[%clk
0:00:09.3]} 51. g4 {[%clk 0:00:02.6]} 51... e4 {[%clk 0:00:09.6]} 52. Kg2 {[%clk
0:00:03.1]} 52... e3 {[%clk 0:00:09.9]} 53. Kf3 {[%clk 0:00:03.8]} 53... Kf8
{[%clk 0:00:10.3]} 54. Ke2 {[%clk 0:00:04.1]} 54... Ke7 {[%clk 0:00:10.7]} 55.
Kf3 {[%clk 0:00:04.6]} 55... Kf6 {[%clk 0:00:11.1]} 56. Ke2 {[%clk 0:00:05]}
56... Kg5 {[%clk 0:00:11.4]} 57. Kf3 {[%clk 0:00:05.5]} 57... Bg1 {[%clk
0:00:11.3]} 58. Ke2 {[%clk 0:00:04.8]} 58... Kxg4 {[%clk 0:00:10.3]} 59. f6
{[%clk 0:00:05.1]} 59... gxf6 {[%clk 0:00:07.7]} 60. g7 {[%clk 0:00:05.8]} 60...
f5 {[%clk 0:00:08.1]} 61. g8=Q+ {[%clk 0:00:06.7]} 61... Kf4 {[%clk 0:00:07.7]}
62. Qh7 {[%clk 0:00:06.8]} 62... Ke4 {[%clk 0:00:07.4]} 63. Qxh6 {[%clk
0:00:07.1]} 63... Bf2 {[%clk 0:00:06.6]} 64. Qh5 {[%clk 0:00:07.4]} 64... f4
{[%clk 0:00:06.6]} 65. Qf3+ {[%clk 0:00:06.5]} 65... Ke5 {[%clk 0:00:06.8]} 66.
Kd3 {[%clk 0:00:07.1]} 66... Kf5 {[%clk 0:00:05.7]} 67. Qe4+ {[%clk 0:00:07.3]}
67... Kg4 {[%clk 0:00:05.6]} 68. Ke2 {[%clk 0:00:07.9]} 68... Kg3 {[%clk
0:00:05.2]} 69. Qg6+ {[%clk 0:00:08.1]} 69... Kh2 {[%clk 0:00:04.9]} 70. Qh5+
{[%clk 0:00:08.4]} 70... Kg1 {[%clk 0:00:04.8]} 71. Qg4+ {[%clk 0:00:08.2]}
71... Bg3 {[%clk 0:00:04.7]} 72. Qf3 {[%clk 0:00:06]} 72... Kh2 {[%clk
0:00:04.4]} 73. Kf1 {[%clk 0:00:06.2]} 73... Kh3 {[%clk 0:00:04.6]} 74. Qh5+
{[%clk 0:00:05.4]} 74... Bh4 {[%clk 0:00:02.7]} 75. Ke2 {[%clk 0:00:05.8]} 75...
Kg3 {[%clk 0:00:02.1]} 76. Qf3+ {[%clk 0:00:03.5]} 76... Kh2 {[%clk 0:00:02.1]}
77. Qxf4+ {[%clk 0:00:04.4]} 77... Bg3 {[%clk 0:00:01.8]} 78. Qxe3 {[%clk
0:00:04.8]} 78... Kh3 {[%clk 0:00:01.9]} 79. Qf3 {[%clk 0:00:05.3]} 79... Kh4
{[%clk 0:00:01.8]} 80. Kd3 {[%clk 0:00:04.8]} 80... Kh3 {[%clk 0:00:01.5]} 81.
Ke4 {[%clk 0:00:05.6]} 81... Kh2 {[%clk 0:00:01.8]} 82. Kf5 {[%clk 0:00:05.8]}
1-0

[Event "*** Titled Tuesday Blitz"]
[Site "Chess.com"]
[Date "2020.12.29"]
[Round "10"]
[White "1f3_2g41-0"]
[Black "davigator"]
[Result "0-1"]
[WhiteElo "2418"]
[BlackElo "2303"]
[TimeControl "180+1"]
[EndTime "11:57:03 PST"]
[Termination "davigator won by checkmate"]

1. e4 {[%clk 0:03:00.9]} 1... c5 {[%clk 0:02:59.3]} 2. Nf3 {[%clk 0:02:55]} 2...
Nc6 {[%clk 0:02:58.8]} 3. Bb5 {[%clk 0:02:51.1]} 3... g6 {[%clk 0:02:56.3]} 4.
O-O {[%clk 0:02:48.7]} 4... Bg7 {[%clk 0:02:54.9]} 5. c3 {[%clk 0:02:47.8]} 5...
Nf6 {[%clk 0:02:54.5]} 6. d4 {[%clk 0:02:47.2]} 6... cxd4 {[%clk 0:02:53.9]} 7.
cxd4 {[%clk 0:02:47.1]} 7... d5 {[%clk 0:02:53.9]} 8. e5 {[%clk 0:02:43.1]} 8...
Ne4 {[%clk 0:02:53.5]} 9. Nc3 {[%clk 0:02:42.7]} 9... Nxc3 {[%clk 0:02:52.7]}
10. bxc3 {[%clk 0:02:42.5]} 10... O-O {[%clk 0:02:53.2]} 11. Qb3 {[%clk
0:02:39.9]} 11... f6 {[%clk 0:02:50.5]} 12. Re1 {[%clk 0:02:20.1]} 12... Bg4
{[%clk 0:02:46.1]} 13. Be2 {[%clk 0:01:57.4]} 13... Na5 {[%clk 0:02:31.8]} 14.
Qa4 {[%clk 0:01:51.4]} 14... Bxf3 {[%clk 0:02:27.5]} 15. Bxf3 {[%clk 0:01:49.4]}
15... fxe5 {[%clk 0:02:28.1]} 16. dxe5 {[%clk 0:01:46.5]} 16... e6 {[%clk
0:02:28.5]} 17. Ba3 {[%clk 0:01:40.6]} 17... Rf7 {[%clk 0:02:26.8]} 18. Bg4
{[%clk 0:01:37.8]} 18... Qb6 {[%clk 0:02:15.3]} 19. Qd4 {[%clk 0:01:14.5]} 19...
Qc6 {[%clk 0:02:06.4]} 20. Bd6 {[%clk 0:01:10.9]} 20... Re8 {[%clk 0:02:05.1]}
21. Qxa7 {[%clk 0:01:02.1]} 21... b6 {[%clk 0:02:01.7]} 22. Qa6 {[%clk
0:00:57.2]} 22... Nc4 {[%clk 0:02:01.5]} 23. a4 {[%clk 0:00:50]} 23... Nxd6
{[%clk 0:02:00.2]} 24. exd6 {[%clk 0:00:48.9]} 24... Qxd6 {[%clk 0:01:52.6]} 25.
Qb5 {[%clk 0:00:48.3]} 25... Ree7 {[%clk 0:01:46.5]} 26. Re2 {[%clk 0:00:40.6]}
26... Bxc3 {[%clk 0:01:45.5]} 27. Rd1 {[%clk 0:00:38.7]} 27... Bb4 {[%clk
0:01:39.8]} 28. Rxe6 {[%clk 0:00:28.4]} 28... Rxe6 {[%clk 0:01:39.1]} 29. Bxe6
{[%clk 0:00:29.3]} 29... Qxe6 {[%clk 0:01:32]} 30. Qxb4 {[%clk 0:00:29.6]} 30...
Rd7 {[%clk 0:01:30.1]} 31. Re1 {[%clk 0:00:28.5]} 31... Qd6 {[%clk 0:01:28.1]}
32. Qd4 {[%clk 0:00:27.3]} 32... Qc5 {[%clk 0:01:09.7]} 33. Qf6 {[%clk
0:00:24.1]} 33... Qf8 {[%clk 0:01:05.4]} 34. Qxb6 {[%clk 0:00:21.7]} 34... d4
{[%clk 0:01:01.4]} 35. Qb5 {[%clk 0:00:19.2]} 35... Qf7 {[%clk 0:01:01]} 36.
Qb8+ {[%clk 0:00:18.9]} 36... Kg7 {[%clk 0:01:00.5]} 37. Qe5+ {[%clk 0:00:19.4]}
37... Qf6 {[%clk 0:00:59.9]} 38. Qb5 {[%clk 0:00:19.9]} 38... Qd6 {[%clk
0:00:59]} 39. Qd3 {[%clk 0:00:19.6]} 39... Ra7 {[%clk 0:00:57.2]} 40. Ra1 {[%clk
0:00:17.8]} 40... Qb4 {[%clk 0:00:55.7]} 41. Rb1 {[%clk 0:00:16.3]} 41... Qxa4
{[%clk 0:00:54.2]} 42. h4 {[%clk 0:00:16.5]} 42... Rd7 {[%clk 0:00:46.6]} 43. h5
{[%clk 0:00:16.1]} 43... Qa5 {[%clk 0:00:43.9]} 44. hxg6 {[%clk 0:00:15.7]}
44... hxg6 {[%clk 0:00:43.6]} 45. Qh3 {[%clk 0:00:15.7]} 45... Qf5 {[%clk
0:00:42.9]} 46. Qb3 {[%clk 0:00:13.8]} 46... d3 {[%clk 0:00:41.8]} 47. Rd1
{[%clk 0:00:14.4]} 47... Qe4 {[%clk 0:00:38.1]} 48. Qc3+ {[%clk 0:00:13.7]}
48... Kf7 {[%clk 0:00:37]} 49. Qb3+ {[%clk 0:00:12.7]} 49... Kg7 {[%clk
0:00:36.5]} 50. Qc3+ {[%clk 0:00:12.4]} 50... Kh7 {[%clk 0:00:37]} 51. Re1
{[%clk 0:00:12.2]} 51... Qf5 {[%clk 0:00:31.9]} 52. Rd1 {[%clk 0:00:08.5]} 52...
Qe4 {[%clk 0:00:30.9]} 53. Rd2 {[%clk 0:00:08.8]} 53... Qe1+ {[%clk 0:00:30.5]}
54. Kh2 {[%clk 0:00:09.4]} 54... Qe4 {[%clk 0:00:30.8]} 55. Qf6 {[%clk
0:00:08.9]} 55... Qd5 {[%clk 0:00:28.3]} 56. g4 {[%clk 0:00:07.8]} 56... Rf7
{[%clk 0:00:27.7]} 57. Qh4+ {[%clk 0:00:08]} 57... Kg7 {[%clk 0:00:27.4]} 58.
Qg3 {[%clk 0:00:08.2]} 58... Rf3 {[%clk 0:00:25.5]} 59. Qc7+ {[%clk 0:00:08.8]}
59... Kh6 {[%clk 0:00:25]} 60. Qe7 {[%clk 0:00:09.2]} 60... Qd4 {[%clk
0:00:20.5]} 61. Qh4+ {[%clk 0:00:03.6]} 61... Kg7 {[%clk 0:00:20.6]} 62. Qe7+
{[%clk 0:00:04.3]} 62... Rf7 {[%clk 0:00:20.6]} 63. Qe3 {[%clk 0:00:03.3]} 63...
Qxg4 {[%clk 0:00:15.9]} 64. Rxd3 {[%clk 0:00:03.8]} 64... Qf5 {[%clk 0:00:14.3]}
65. Kg2 {[%clk 0:00:04.2]} 65... Qg4+ {[%clk 0:00:13.8]} 66. Qg3 {[%clk
0:00:04.3]} 66... Qe4+ {[%clk 0:00:13.8]} 67. Kg1 {[%clk 0:00:04.3]} 67... Qe1+
{[%clk 0:00:13.5]} 68. Kg2 {[%clk 0:00:04.8]} 68... Qe4+ {[%clk 0:00:13.9]} 69.
Kh2 {[%clk 0:00:05.3]} 69... Rf5 {[%clk 0:00:13.9]} 70. Re3 {[%clk 0:00:05.7]}
70... Rh5+ {[%clk 0:00:12.9]} 71. Qh3 {[%clk 0:00:06.1]} 71... Rxh3+ {[%clk
0:00:12.8]} 72. Kxh3 {[%clk 0:00:07]} 72... Qf4 {[%clk 0:00:13.1]} 73. Kg2
{[%clk 0:00:07.9]} 73... Qf5 {[%clk 0:00:13.1]} 74. Rf3 {[%clk 0:00:08.3]} 74...
Qe4 {[%clk 0:00:13.1]} 75. Kg3 {[%clk 0:00:08.7]} 75... g5 {[%clk 0:00:13.8]}
76. Re3 {[%clk 0:00:09.6]} 76... Qf4+ {[%clk 0:00:13.7]} 77. Kg2 {[%clk
0:00:10.2]} 77... Kg6 {[%clk 0:00:13.3]} 78. Rg3 {[%clk 0:00:10.8]} 78... Kf5
{[%clk 0:00:13]} 79. Kg1 {[%clk 0:00:11.4]} 79... Ke4 {[%clk 0:00:13]} 80. Kg2
{[%clk 0:00:11.8]} 80... g4 {[%clk 0:00:13.3]} 81. Re3+ {[%clk 0:00:11.6]} 81...
Kf5 {[%clk 0:00:13.2]} 82. Kf1 {[%clk 0:00:12.2]} 82... Qd4 {[%clk 0:00:12.4]}
83. Kg2 {[%clk 0:00:12.6]} 83... Qd1 {[%clk 0:00:12.2]} 84. Kh2 {[%clk
0:00:12.3]} 84... Qd2 {[%clk 0:00:12.5]} 85. Kg2 {[%clk 0:00:12.7]} 85... Qc2
{[%clk 0:00:12.7]} 86. Kh2 {[%clk 0:00:13]} 86... Qxf2+ {[%clk 0:00:12.3]} 87.
Kh1 {[%clk 0:00:13.2]} 87... Qxe3 {[%clk 0:00:12.9]} 88. Kh2 {[%clk 0:00:13]}
88... Qe2+ {[%clk 0:00:12.6]} 89. Kh1 {[%clk 0:00:13.9]} 89... Kf4 {[%clk
0:00:13]} 90. Kg1 {[%clk 0:00:14.6]} 90... Kf3 {[%clk 0:00:13.5]} 91. Kh1 {[%clk
0:00:15.5]} 91... Qg2# {[%clk 0:00:14.1]} 0-1